[Event "IMSA Blitz Men 2019"]
[Site "Hengshui"]
[Date "2019.05.18"]
[Round "9.2"]
[White "Mamedov, Rauf"]
[Black "Yu, Yangyi"]
[Result "1-0"]
[ECO "A05"]
[WhiteElo "2650"]
[BlackElo "2739"]
[Annotator "RC"]
[PlyCount "67"]
[EventDate "2019.05.17"]
[EventType "blitz"]
[EventCountry "CHN"]
[SourceTitle "playchess.com"]
[Source "ChessBase"]
[SourceQuality "1"]
[TimeControl "180+2"]

1. Nf3 {[%emt 0:00:00]} Nf6 {[%emt 0:00:00]} 2. g3 {[%emt 0:00:01]} d5 {[%emt 0:00:00]} 3. Bg2 {[%emt 0:00:01]} c5 {[%emt 0:00:01]} 4. O-O {[%emt 0:00:02]} Nc6 {[%emt 0:00:01]} 5. d3 {[%emt 0:00:01]} e5 {[%emt 0:00:06]} 6. e4 {[%emt 0:00:03]} dxe4 {[%emt 0:00:04]} 7. dxe4 {[%emt 0:00:01]} Qxd1 {[%emt 0:00:01]} 8. Rxd1 {[%emt 0:00:01]} Nd4 {[%emt 0:00:01]} 9. Nxd4 {[%emt 0:00:14]} cxd4 {[%emt 0:00:00]} 10. c3 {[%emt 0:00:07]} Bg4 {[%emt 0:00:04]} 11. f3 {[%emt 0:00:06]} Be6 {[%emt 0:00:01]} 12. cxd4 {[%emt 0:00:01]} exd4 {[%emt 0:00:01]} 13. Bf4 {[%emt 0:00:09]} Bc5 {[%emt 0:00:06]} 14. Nd2 {[%emt 0:00:02]} Bb6 {[%emt 0:00:33]} 15. Bd6 {[%emt 0:00:06]} Rd8 {[%emt 0:00:14]} 16. Ba3 {[%emt 0:00:02]} h5 {[%emt 0:00:08]} 17. Bf1 {[%emt 0:00:17]} d3+ {[%emt 0:00:06]} 18. Kg2 {[%emt 0:00:01]} g5 {[%emt 0:00:01]} 19. e5 {[%emt 0:00:22]} Nd5 {[%emt 0:00:10]} 20. Ne4 {[%emt 0:00:01]} Ne3+ {[%emt 0:00:29]} 21. Kh1 {[%emt 0:00:02]} f5 {[%emt 0:00:03]} 22. exf6 {[%emt 0:00:26]} Nxd1 {[%emt 0:00:06]} 23. Rxd1 {[%emt 0:00:01]} Bd5 {[%emt 0:00:30]} 24. Nxg5 {[%emt 0:00:13]} Rg8 {[%emt 0:00:16]} 25. f7+ {[%emt 0:00:02]} Bxf7 26. Re1+ Be6 {[%emt 0:00:18]} 27. Nxe6 {[%emt 0:00:09]} d2 {[%emt 0:00:01]} 28. Bb5+ {[%emt 0:00:08]} Kf7 {[%emt 0:00:16]} 29. Nxd8+ {[%emt 0:00:01]} Rxd8 {[%emt 0:00:00]} 30. Rd1 {[%emt 0:00:01]} Be3 {[%emt 0:00:02]} 31. Bb4 {[%emt 0:00:07]} Kg6 {[%emt 0:00:05]} 32. Kg2 {[%emt 0:00:02]} Kf5 {[%emt 0:00:01]} 33. Bc3 {[%emt 0:00:02]} a6 {[%emt 0:00:02]} 34. Ba4 {[%emt 0:00:02]} 1-0

[Event "IMSA Blitz Men 2019"]
[Site "Hengshui"]
[Date "2019.05.18"]
[Round "10.1"]
[White "Dominguez Perez, Leinier"]
[Black "Yu, Yangyi"]
[Result "1-0"]
[ECO "C18"]
[WhiteElo "2750"]
[BlackElo "2739"]
[Annotator "ChessBase"]
[PlyCount "111"]
[EventDate "2019.05.17"]
[EventType "blitz"]
[EventCountry "CHN"]
[SourceTitle "playchess.com"]
[Source "ChessBase"]
[SourceQuality "1"]
[TimeControl "180+2"]

1. e4 {[%emt 0:00:00]} e6 {[%emt 0:00:00]} 2. d4 {[%emt 0:00:00]} d5 {[%emt 0:00:00]} 3. Nc3 {[%emt 0:00:00]} Bb4 {[%emt 0:00:00]} 4. e5 {[%emt 0:00:01]} c5 {[%emt 0:00:01]} 5. a3 {[%emt 0:00:01]} Bxc3+ {[%emt 0:00:01]} 6. bxc3 {[%emt 0:00:00]} Qa5 {[%emt 0:00:00]} 7. Bd2 {[%emt 0:00:02]} c4 {[%emt 0:00:01]} 8. Qg4 {[%emt 0:00:04]} g6 {[%emt 0:00:01]} 9. h4 {[%emt 0:00:04]} h6 {[%emt 0:00:02]} 10. Qf4 {[%emt 0:00:18]} Qa4 {[%emt 0:00:05]} 11. Ra2 {[%emt 0:00:20]} Nc6 {[%emt 0:00:01]} 12. Nf3 {[%emt 0:00:04]} Bd7 {[%emt 0:00:01]} 13. Be2 {[%emt 0:00:03]} Nge7 {[%emt 0:00:41]} 14. Nh2 {[%emt 0:00:11]} g5 {[%emt 0:00:18]} 15. Qf6 {[%emt 0:00:08]} O-O-O {[%emt 0:00:02]} 16. Ng4 {[%emt 0:00:01]} Qb5 {[%emt 0:00:15]} 17. Ra1 {[%emt 0:00:01]} Qb2 {[%emt 0:00:04]} 18. Rc1 {[%emt 0:00:01]} h5 {[%emt 0:00:08]} 19. hxg5 {[%emt 0:00:04]} Nf5 {[%emt 0:00:33]} 20. Nh6 {[%emt 0:00:11]} Nxh6 {[%emt 0:00:02]} 21. gxh6 {[%emt 0:00:01]} Rh7 {[%emt 0:00:00]} 22. Rxh5 {[%emt 0:00:10]} Rdh8 {[%emt 0:00:20]} 23. Rh4 {[%emt 0:00:06]} Qxa3 {[%emt 0:00:11]} 24. Rg4 {[%emt 0:00:07]} Ne7 {[%emt 0:00:24]} 25. Rg7 {[%emt 0:00:09]} Nf5 {[%emt 0:00:09]} 26. Qxf7 {[%emt 0:00:36]} Rxg7 {[%emt 0:00:28]} 27. hxg7 {[%emt 0:00:01]} Rh1+ {[%emt 0:00:01]} 28. Bf1 {[%emt 0:00:01]} Nxg7 {[%emt 0:00:02]} 29. Qxg7 {[%emt 0:00:01]} a5 {[%emt 0:00:01]} 30. Rb1 {[%emt 0:00:21]} Qa2 {[%emt 0:00:04]} 31. Qf8+ Kc7 32. Qd6+ {[%emt 0:00:02]} Kc8 {[%emt 0:00:01]} 33. Qb6 {[%emt 0:00:05]} Bc6 {[%emt 0:00:02]} 34. Qb2 {[%emt 0:00:02]} Qxb2 35. Rxb2 {[%emt 0:00:01]} a4 {[%emt 0:00:05]} 36. f3 {[%emt 0:00:04]} b5 {[%emt 0:00:01]} 37. Ra2 {[%emt 0:00:04]} Be8 {[%emt 0:00:01]} 38. Kf2 {[%emt 0:00:02]} Bg6 {[%emt 0:00:01]} 39. Bc1 {[%emt 0:00:04]} Kc7 {[%emt 0:00:03]} 40. Ba3 {[%emt 0:00:01]} Kc6 {[%emt 0:00:03]} 41. g4 {[%emt 0:00:04]} Bh7 42. Ra1 {[%emt 0:00:05]} Bxc2 {[%emt 0:00:07]} 43. Re1 {[%emt 0:00:01]} Bg6 {[%emt 0:00:02]} 44. Bg2 {[%emt 0:00:03]} Rh8 {[%emt 0:00:02]} 45. Rh1 {[%emt 0:00:03]} Rg8 {[%emt 0:00:01]} 46. Kg3 {[%emt 0:00:03]} Bd3 {[%emt 0:00:01]} 47. f4 {[%emt 0:00:05]} Bf5 {[%emt 0:00:02]} 48. Bf3 {[%emt 0:00:02]} Bd3 {[%emt 0:00:02]} 49. Rh6 {[%emt 0:00:02]} Kd7 {[%emt 0:00:01]} 50. Rf6 {[%emt 0:00:07]} Rb8 {[%emt 0:00:06]} 51. Rf7+ {[%emt 0:00:02]} Kc6 {[%emt 0:00:01]} 52. Re7 {[%emt 0:00:01]} b4 {[%emt 0:00:01]} 53. Rxe6+ {[%emt 0:00:04]} Kc7 {[%emt 0:00:01]} 54. Bxb4 {[%emt 0:00:03]} Rxb4 55. cxb4 {[%emt 0:00:00]} a3 {[%emt 0:00:03]} 56. Ra6 {[%emt 0:00:03]} 1-0

[Event "IMSA Blitz Men 2019"]
[Site "Hengshui"]
[Date "2019.05.18"]
[Round "10.1"]
[White "Wang, Hao"]
[Black "Cheparinov, Ivan"]
[Result "1-0"]
[ECO "C54"]
[WhiteElo "2735"]
[BlackElo "2667"]
[Annotator "RC"]
[PlyCount "69"]
[EventDate "2019.05.17"]
[EventType "blitz"]
[EventCountry "CHN"]
[SourceTitle "playchess.com"]
[Source "ChessBase"]
[SourceQuality "1"]
[TimeControl "180+2"]

1. e4 {[%emt 0:00:00]} e5 {[%emt 0:00:00]} 2. Nf3 {[%emt 0:00:01]} Nc6 {[%emt 0:00:00]} 3. Bc4 {[%emt 0:00:01]} Bc5 {[%emt 0:00:01]} 4. c3 {[%emt 0:00:01]} Nf6 {[%emt 0:00:01]} 5. d3 {[%emt 0:00:01]} d6 {[%emt 0:00:02]} 6. O-O {[%emt 0:00:01]} O-O {[%emt 0:00:01]} 7. a4 {[%emt 0:00:01]} a5 {[%emt 0:00:02]} 8. Nbd2 {[%emt 0:00:02]} Be6 {[%emt 0:00:05]} 9. h3 {[%emt 0:00:10]} h6 {[%emt 0:00:04]} 10. Re1 {[%emt 0:00:03]} Qd7 {[%emt 0:00:06]} 11. Bb5 {[%emt 0:00:08]} Qc8 {[%emt 0:00:16]} 12. Nf1 {[%emt 0:00:16]} Na7 {[%emt 0:00:42]} 13. d4 {[%emt 0:00:06]} exd4 {[%emt 0:00:01]} 14. cxd4 {[%emt 0:00:01]} Bb4 {[%emt 0:00:03]} 15. Bd2 {[%emt 0:00:02]} Nxb5 {[%emt 0:00:16]} 16. axb5 {[%emt 0:00:03]} d5 {[%emt 0:00:30]} 17. e5 {[%emt 0:00:36]} Ne4 {[%emt 0:00:19]} 18. Bxb4 {[%emt 0:00:02]} axb4 {[%emt 0:00:01]} 19. N1d2 {[%emt 0:00:04]} Qd7 {[%emt 0:00:17]} 20. Qe2 {[%emt 0:00:06]} Bf5 {[%emt 0:00:09]} 21. Nb3 {[%emt 0:00:13]} Rfe8 {[%emt 0:00:12]} 22. Rec1 {[%emt 0:00:12]} Rxa1 {[%emt 0:00:05]} 23. Rxa1 {[%emt 0:00:01]} Nd6 {[%emt 0:00:01]} 24. b6 {[%emt 0:00:19]} cxb6 {[%emt 0:00:05]} 25. Qd2 {[%emt 0:00:03]} Nc4 {[%emt 0:00:01]} 26. Qxb4 {[%emt 0:00:02]} Rc8 {[%emt 0:00:08]} 27. Nbd2 {[%emt 0:00:06]} Qc6 {[%emt 0:00:08]} 28. Nf1 {[%emt 0:00:09]} Be4 {[%emt 0:00:02]} 29. N3d2 {[%emt 0:00:05]} Nxd2 {[%emt 0:00:04]} 30. Nxd2 {[%emt 0:00:02]} Qg6 {[%emt 0:00:08]} 31. Nxe4 {[%emt 0:00:03]} dxe4 {[%emt 0:00:02]} 32. d5 {[%emt 0:00:08]} Rc2 {[%emt 0:00:05]} 33. Qd4 {[%emt 0:00:03]} Kh7 {[%emt 0:00:06]} 34. d6 {[%emt 0:00:02]} Qf5 {[%emt 0:00:02]} 35. Rd1 {[%emt 0:00:11]} 1-0

[Event "IMSA Blitz Men 2019"]
[Site "Hengshui"]
[Date "2019.05.18"]
[Round "10.1"]
[White "Jones, Gawain C B"]
[Black "Le, Quang Liem"]
[Result "0-1"]
[ECO "B31"]
[WhiteElo "2702"]
[BlackElo "2704"]
[Annotator "ChessBase"]
[PlyCount "236"]
[EventDate "2019.05.17"]
[EventType "blitz"]
[EventCountry "CHN"]
[SourceTitle "playchess.com"]
[Source "ChessBase"]
[SourceQuality "1"]
[TimeControl "180+2"]

1. e4 {[%emt 0:00:00]} c5 {[%emt 0:00:00]} 2. Nf3 {[%emt 0:00:00]} Nc6 {[%emt 0:00:00]} 3. Bb5 {[%emt 0:00:01]} g6 {[%emt 0:00:01]} 4. O-O {[%emt 0:00:01]} Bg7 {[%emt 0:00:00]} 5. Re1 {[%emt 0:00:01]} e5 {[%emt 0:00:01]} 6. Bxc6 {[%emt 0:00:01]} dxc6 {[%emt 0:00:01]} 7. a4 {[%emt 0:00:01]} a5 {[%emt 0:00:05]} 8. Na3 {[%emt 0:00:02]} Qc7 {[%emt 0:00:04]} 9. Nc4 {[%emt 0:00:06]} Be6 {[%emt 0:00:04]} 10. d3 {[%emt 0:00:01]} h6 {[%emt 0:00:15]} 11. b3 {[%emt 0:00:02]} Ne7 {[%emt 0:00:17]} 12. Bb2 {[%emt 0:00:01]} Bxc4 {[%emt 0:00:15]} 13. bxc4 {[%emt 0:00:04]} O-O {[%emt 0:00:03]} 14. Ra3 {[%emt 0:00:07]} Rae8 {[%emt 0:00:04]} 15. Rb3 {[%emt 0:00:03]} Nc8 {[%emt 0:00:02]} 16. Qd2 {[%emt 0:00:14]} b6 {[%emt 0:00:05]} 17. Bc3 {[%emt 0:00:07]} Kh7 {[%emt 0:00:02]} 18. h3 {[%emt 0:00:14]} f5 {[%emt 0:00:12]} 19. exf5 {[%emt 0:00:17]} gxf5 {[%emt 0:00:02]} 20. Rbb1 {[%emt 0:00:01]} e4 {[%emt 0:00:27]} 21. Nh2 {[%emt 0:00:48]} Bxc3 {[%emt 0:00:15]} 22. Qxc3 {[%emt 0:00:01]} Qg7 {[%emt 0:00:02]} 23. Qxg7+ {[%emt 0:00:07]} Kxg7 {[%emt 0:00:01]} 24. Re3 {[%emt 0:00:01]} exd3 {[%emt 0:00:21]} 25. cxd3 {[%emt 0:00:04]} Kf6 {[%emt 0:00:06]} 26. Rf3 {[%emt 0:00:08]} Re2 {[%emt 0:00:09]} 27. Ng4+ {[%emt 0:00:04]} Ke6 {[%emt 0:00:01]} 28. Re3+ {[%emt 0:00:04]} Rxe3 {[%emt 0:00:01]} 29. Nxe3 {[%emt 0:00:01]} Rd8 {[%emt 0:00:03]} 30. Rb3 {[%emt 0:00:03]} f4 {[%emt 0:00:05]} 31. Ng4 {[%emt 0:00:03]} h5 {[%emt 0:00:15]} 32. Nh2 {[%emt 0:00:01]} Kd6 {[%emt 0:00:01]} 33. Kf1 {[%emt 0:00:03]} Kc7 {[%emt 0:00:02]} 34. Nf3 {[%emt 0:00:01]} Nd6 {[%emt 0:00:04]} 35. Ng5 {[%emt 0:00:07]} Re8 {[%emt 0:00:02]} 36. Rb2 {[%emt 0:00:05]} b5 {[%emt 0:00:02]} 37. cxb5 {[%emt 0:00:03]} cxb5 {[%emt 0:00:01]} 38. axb5 {[%emt 0:00:01]} Kb6 {[%emt 0:00:07]} 39. Nh7 {[%emt 0:00:09]} a4 {[%emt 0:00:03]} 40. Nf6 {[%emt 0:00:01]} a3 {[%emt 0:00:02]} 41. Ra2 {[%emt 0:00:05]} Ra8 {[%emt 0:00:02]} 42. Nd5+ {[%emt 0:00:01]} Kb7 {[%emt 0:00:02]} 43. Nxf4 {[%emt 0:00:09]} Nxb5 {[%emt 0:00:02]} 44. Ne2 {[%emt 0:00:01]} Rd8 {[%emt 0:00:05]} 45. Nc1 {[%emt 0:00:03]} c4 {[%emt 0:00:04]} 46. Ke1 {[%emt 0:00:03]} Re8+ {[%emt 0:00:06]} 47. Kd2 {[%emt 0:00:07]} c3+ {[%emt 0:00:01]} 48. Kd1 {[%emt 0:00:01]} Kb6 {[%emt 0:00:04]} 49. Nb3 {[%emt 0:00:11]} h4 {[%emt 0:00:01]} 50. g3 {[%emt 0:00:11]} hxg3 {[%emt 0:00:03]} 51. fxg3 {[%emt 0:00:01]} Re3 {[%emt 0:00:01]} 52. Rg2 {[%emt 0:00:11]} Rxd3+ {[%emt 0:00:07]} 53. Kc2 {[%emt 0:00:01]} Rf3 {[%emt 0:00:01]} 54. Kb1 {[%emt 0:00:04]} Kc6 {[%emt 0:00:07]} 55. Ka2 {[%emt 0:00:04]} Kd5 {[%emt 0:00:01]} 56. h4 {[%emt 0:00:03]} Kc4 {[%emt 0:00:06]} 57. h5 {[%emt 0:00:01]} Kb4 {[%emt 0:00:02]} 58. Na1 {[%emt 0:00:00]} Nd4 {[%emt 0:00:04]} 59. h6 {[%emt 0:00:04]} Rf1 {[%emt 0:00:08]} 60. h7 {[%emt 0:00:07]} Rh1 {[%emt 0:00:01]} 61. g4 {[%emt 0:00:03]} Rxh7 {[%emt 0:00:02]} 62. g5 {[%emt 0:00:01]} Kc4 {[%emt 0:00:03]} 63. g6 {[%emt 0:00:04]} Rg7 {[%emt 0:00:01]} 64. Rg4 {[%emt 0:00:01]} Kd3 {[%emt 0:00:01]} 65. Kxa3 {[%emt 0:00:03]} Ra7+ {[%emt 0:00:04]} 66. Kb4 {[%emt 0:00:01]} Rxa1 {[%emt 0:00:02]} 67. g7 {[%emt 0:00:01]} Rb1+ {[%emt 0:00:01]} 68. Kc5 {[%emt 0:00:06]} Ne6+ {[%emt 0:00:02]} 69. Kd5 {[%emt 0:00:01]} Nxg7 {[%emt 0:00:01]} 70. Rg3+ {[%emt 0:00:00]} Kd2 {[%emt 0:00:03]} 71. Rg2+ {[%emt 0:00:01]} Kc1 {[%emt 0:00:01]} 72. Kc4 {[%emt 0:00:01]} Rb7 {[%emt 0:00:07]} 73. Kxc3 {[%emt 0:00:01]} Rc7+ {[%emt 0:00:01]} 74. Kd3 {[%emt 0:00:02]} Ne6 {[%emt 0:00:01]} 75. Ke4 {[%emt 0:00:04]} Nc5+ {[%emt 0:00:02]} 76. Kd5 {[%emt 0:00:01]} Nb3 {[%emt 0:00:01]} 77. Rh2 {[%emt 0:00:02]} Nd2 {[%emt 0:00:01]} 78. Kd6 {[%emt 0:00:02]} Ra7 {[%emt 0:00:02]} 79. Kd5 {[%emt 0:00:03]} Kc2 {[%emt 0:00:01]} 80. Kd4 {[%emt 0:00:01]} Ra4+ {[%emt 0:00:02]} 81. Kd5 {[%emt 0:00:01]} Rg4 {[%emt 0:00:02]} 82. Ke5 {[%emt 0:00:02]} Kd3 {[%emt 0:00:02]} 83. Rh3+ {[%emt 0:00:01]} Kc4 {[%emt 0:00:02]} 84. Kf5 {[%emt 0:00:00]} Rd4 {[%emt 0:00:01]} 85. Ke5 {[%emt 0:00:03]} Rd5+ {[%emt 0:00:01]} 86. Ke6 {[%emt 0:00:03]} Ne4 {[%emt 0:00:02]} 87. Rh4 {[%emt 0:00:01]} Kd4 {[%emt 0:00:00]} 88. Rh1 {[%emt 0:00:03]} Rd6+ {[%emt 0:00:02]} 89. Ke7 {[%emt 0:00:01]} Ra6 {[%emt 0:00:01]} 90. Rd1+ {[%emt 0:00:06]} Ke5 {[%emt 0:00:01]} 91. Kd7 {[%emt 0:00:02]} Nc3 {[%emt 0:00:03]} 92. Re1+ {[%emt 0:00:02]} Kd5 {[%emt 0:00:01]} 93. Ke7 {[%emt 0:00:02]} Ra7+ {[%emt 0:00:03]} 94. Kf6 {[%emt 0:00:02]} Ne4+ {[%emt 0:00:01]} 95. Kg6 {[%emt 0:00:04]} Ke5 {[%emt 0:00:01]} 96. Rb1 {[%emt 0:00:07]} Ra2 {[%emt 0:00:03]} 97. Re1 {[%emt 0:00:01]} Rg2+ {[%emt 0:00:01]} 98. Kf7 {[%emt 0:00:01]} Rg4 {[%emt 0:00:02]} 99. Re2 {[%emt 0:00:04]} Rh4 {[%emt 0:00:03]} 100. Re1 {[%emt 0:00:01]} Rf4+ {[%emt 0:00:03]} 101. Ke7 {[%emt 0:00:01]} Rg4 {[%emt 0:00:03]} 102. Kd7 {[%emt 0:00:01]} Rg6 {[%emt 0:00:03]} 103. Kc7 {[%emt 0:00:02]} Rh6 {[%emt 0:00:06]} 104. Rd1 {[%emt 0:00:02]} Nc3 {[%emt 0:00:01]} 105. Re1+ {[%emt 0:00:02]} Kd5 {[%emt 0:00:02]} 106. Rc1 {[%emt 0:00:04]} Rc6+ {[%emt 0:00:07]} 107. Kd7 {[%emt 0:00:02]} Rc4 {[%emt 0:00:01]} 108. Rh1 {[%emt 0:00:02]} Ne4 {[%emt 0:00:03]} 109. Rh5+ {[%emt 0:00:01]} Kd4 {[%emt 0:00:00]} 110. Rh4 {[%emt 0:00:02]} Ke5 {[%emt 0:00:02]} 111. Rh5+ {[%emt 0:00:01]} Kf6 {[%emt 0:00:01]} 112. Ra5 {[%emt 0:00:03]} Nc5+ {[%emt 0:00:01]} 113. Ke8 {[%emt 0:00:07]} Re4+ {[%emt 0:00:00]} 114. Kf8 {[%emt 0:00:00]} Nd7+ {[%emt 0:00:00]} 115. Kg8 {[%emt 0:00:01]} Kg6 {[%emt 0:00:00]} 116. Ra8 {[%emt 0:00:02]} Re7 {[%emt 0:00:00]} 117. Kh8 {[%emt 0:00:03]} Rh7+ {[%emt 0:00:00]} 118. Kg8 {[%emt 0:00:01]} Nf6+ {[%emt 0:00:00]} 0-1

[Event "IMSA Blitz Men 2019"]
[Site "Hengshui"]
[Date "2019.05.18"]
[Round "10.1"]
[White "Ponomariov, Ruslan"]
[Black "Rapport, Richard"]
[Result "1-0"]
[ECO "C41"]
[WhiteElo "2675"]
[BlackElo "2736"]
[Annotator "ChessBase"]
[PlyCount "117"]
[EventDate "2019.05.17"]
[EventType "blitz"]
[EventCountry "CHN"]
[SourceTitle "playchess.com"]
[Source "ChessBase"]
[SourceQuality "1"]
[TimeControl "180+2"]

1. e4 {[%emt 0:00:00]} d6 {[%emt 0:00:00]} 2. d4 {[%emt 0:00:00]} Nf6 {[%emt 0:00:00]} 3. Nc3 {[%emt 0:00:01]} e5 {[%emt 0:00:00]} 4. Nf3 {[%emt 0:00:01]} Nbd7 {[%emt 0:00:00]} 5. Bc4 {[%emt 0:00:01]} Be7 6. a4 O-O {[%emt 0:00:02]} 7. O-O {[%emt 0:00:01]} c6 {[%emt 0:00:00]} 8. h3 {[%emt 0:00:06]} h6 {[%emt 0:00:01]} 9. Re1 {[%emt 0:00:00]} Re8 {[%emt 0:00:01]} 10. Be3 {[%emt 0:00:12]} exd4 {[%emt 0:00:01]} 11. Qxd4 {[%emt 0:00:08]} Qa5 {[%emt 0:00:01]} 12. Bf4 {[%emt 0:00:08]} Ne5 {[%emt 0:00:15]} 13. Be2 {[%emt 0:00:22]} Bf8 {[%emt 0:00:05]} 14. Rad1 {[%emt 0:00:05]} Bd7 {[%emt 0:00:13]} 15. Bg3 {[%emt 0:00:15]} Rad8 {[%emt 0:00:12]} 16. b4 {[%emt 0:00:02]} Qb6 {[%emt 0:00:10]} 17. Qxb6 {[%emt 0:00:03]} axb6 {[%emt 0:00:01]} 18. b5 {[%emt 0:00:22]} Ra8 {[%emt 0:00:04]} 19. Nd4 {[%emt 0:00:03]} Ng6 {[%emt 0:00:13]} 20. Bc4 {[%emt 0:00:21]} Rac8 {[%emt 0:00:30]} 21. Bb3 {[%emt 0:00:01]} Nh5 {[%emt 0:00:35]} 22. Bh2 {[%emt 0:00:02]} Nf6 {[%emt 0:00:01]} 23. Re3 {[%emt 0:00:04]} Red8 {[%emt 0:00:18]} 24. g4 {[%emt 0:00:03]} Re8 {[%emt 0:00:10]} 25. bxc6 {[%emt 0:00:03]} bxc6 {[%emt 0:00:02]} 26. Kg2 {[%emt 0:00:02]} Nh4+ {[%emt 0:00:01]} 27. Kg1 {[%emt 0:00:02]} Ng6 {[%emt 0:00:01]} 28. Bg3 {[%emt 0:00:02]} Ra8 {[%emt 0:00:06]} 29. Kg2 {[%emt 0:00:01]} Ra5 {[%emt 0:00:01]} 30. f3 {[%emt 0:00:09]} Rc5 {[%emt 0:00:03]} 31. Rdd3 {[%emt 0:00:02]} h5 {[%emt 0:00:04]} 32. Nf5 {[%emt 0:00:06]} hxg4 {[%emt 0:00:02]} 33. hxg4 {[%emt 0:00:01]} Ne5 {[%emt 0:00:07]} 34. Rd4 {[%emt 0:00:03]} Be6 {[%emt 0:00:03]} 35. Nxd6 {[%emt 0:00:12]} Rd8 {[%emt 0:00:01]} 36. Nf5 {[%emt 0:00:01]} Rxd4 37. Nxd4 {[%emt 0:00:02]} Bd7 {[%emt 0:00:12]} 38. Nce2 {[%emt 0:00:10]} g5 {[%emt 0:00:02]} 39. Rc3 {[%emt 0:00:02]} Ng6 {[%emt 0:00:04]} 40. Nf5 {[%emt 0:00:05]} Rxc3 {[%emt 0:00:07]} 41. Nxc3 {[%emt 0:00:01]} Nf4+ {[%emt 0:00:00]} 42. Kf1 {[%emt 0:00:01]} Bc5 {[%emt 0:00:06]} 43. Nh6+ {[%emt 0:00:05]} Kg7 {[%emt 0:00:02]} 44. Nxf7 {[%emt 0:00:02]} Bc8 {[%emt 0:00:09]} 45. Nxg5 {[%emt 0:00:07]} Ba6+ {[%emt 0:00:01]} 46. Ke1 {[%emt 0:00:03]} Ng2+ {[%emt 0:00:03]} 47. Kd1 {[%emt 0:00:00]} Bb4 {[%emt 0:00:04]} 48. Be5 {[%emt 0:00:06]} Kg6 {[%emt 0:00:04]} 49. Ne6 {[%emt 0:00:02]} Ne3+ {[%emt 0:00:01]} 50. Kd2 {[%emt 0:00:02]} Nf1+ {[%emt 0:00:02]} 51. Ke1 {[%emt 0:00:02]} Ne3 {[%emt 0:00:02]} 52. Nc7 {[%emt 0:00:04]} Bf1 {[%emt 0:00:10]} 53. Kf2 {[%emt 0:00:04]} Nexg4+ {[%emt 0:00:02]} 54. fxg4 {[%emt 0:00:02]} Nxg4+ {[%emt 0:00:01]} 55. Kxf1 {[%emt 0:00:01]} Nxe5 {[%emt 0:00:00]} 56. Nd1 {[%emt 0:00:05]} Kg5 {[%emt 0:00:05]} 57. Ke2 {[%emt 0:00:01]} Kf4 {[%emt 0:00:01]} 58. Nf2 {[%emt 0:00:01]} Nd7 {[%emt 0:00:03]} 59. Nd3+ {[%emt 0:00:02]} 1-0

[Event "IMSA Blitz Men 2019"]
[Site "Hengshui"]
[Date "2019.05.18"]
[Round "10.1"]
[White "Leko, Peter"]
[Black "Andreikin, Dmitry"]
[Result "1/2-1/2"]
[ECO "C67"]
[WhiteElo "2674"]
[BlackElo "2722"]
[Annotator "ChessBase"]
[PlyCount "48"]
[EventDate "2019.05.17"]
[EventType "blitz"]
[EventCountry "CHN"]
[SourceTitle "playchess.com"]
[Source "ChessBase"]
[SourceQuality "1"]
[TimeControl "180+2"]

1. e4 {[%emt 0:00:00]} e5 {[%emt 0:00:00]} 2. Nf3 {[%emt 0:00:00]} Nc6 {[%emt 0:00:00]} 3. Bb5 {[%emt 0:00:01]} Nf6 {[%emt 0:00:00]} 4. O-O {[%emt 0:00:03]} Nxe4 {[%emt 0:00:01]} 5. Re1 {[%emt 0:00:01]} Nd6 {[%emt 0:00:01]} 6. Nxe5 {[%emt 0:00:02]} Be7 {[%emt 0:00:01]} 7. Bf1 {[%emt 0:00:01]} Nf5 {[%emt 0:00:01]} 8. Nf3 {[%emt 0:00:04]} O-O {[%emt 0:00:02]} 9. d4 {[%emt 0:00:01]} d5 {[%emt 0:00:01]} 10. c3 {[%emt 0:00:04]} Re8 {[%emt 0:00:02]} 11. Bd3 {[%emt 0:00:02]} Bd6 {[%emt 0:00:02]} 12. Rxe8+ {[%emt 0:00:04]} Qxe8 {[%emt 0:00:01]} 13. Nbd2 {[%emt 0:00:04]} Nce7 {[%emt 0:00:09]} 14. Nf1 {[%emt 0:00:05]} c6 {[%emt 0:00:01]} 15. Qc2 {[%emt 0:00:05]} f6 {[%emt 0:00:15]} 16. Bd2 {[%emt 0:00:02]} Qh5 {[%emt 0:00:11]} 17. Re1 {[%emt 0:00:08]} Bd7 {[%emt 0:00:01]} 18. Ng3 {[%emt 0:00:21]} Nxg3 {[%emt 0:00:03]} 19. hxg3 {[%emt 0:00:01]} Re8 {[%emt 0:00:30]} 20. Nh4 {[%emt 0:00:20]} Kh8 {[%emt 0:00:28]} 21. Be2 {[%emt 0:00:12]} Qf7 {[%emt 0:00:03]} 22. Bd3 {[%emt 0:00:01]} Qh5 {[%emt 0:00:02]} 23. Be2 {[%emt 0:00:04]} Qf7 {[%emt 0:00:02]} 24. Bd3 {[%emt 0:00:01]} Qh5 {[%emt 0:00:00]} 1/2-1/2

[Event "IMSA Blitz Men 2019"]
[Site "Hengshui"]
[Date "2019.05.18"]
[Round "10.1"]
[White "Mamedov, Rauf"]
[Black "Korobov, Anton"]
[Result "0-1"]
[ECO "B96"]
[WhiteElo "2650"]
[BlackElo "2687"]
[Annotator "ChessBase"]
[PlyCount "102"]
[EventDate "2019.05.17"]
[EventType "blitz"]
[EventCountry "CHN"]
[SourceTitle "playchess.com"]
[Source "ChessBase"]
[SourceQuality "1"]
[TimeControl "180+2"]

1. e4 {[%emt 0:00:00]} c5 {[%emt 0:00:00]} 2. Nf3 {[%emt 0:00:01]} d6 {[%emt 0:00:00]} 3. d4 {[%emt 0:00:01]} cxd4 {[%emt 0:00:01]} 4. Nxd4 {[%emt 0:00:01]} Nf6 {[%emt 0:00:02]} 5. Nc3 {[%emt 0:00:01]} a6 {[%emt 0:00:00]} 6. Bg5 {[%emt 0:00:01]} e6 {[%emt 0:00:02]} 7. f4 {[%emt 0:00:03]} Qc7 {[%emt 0:00:01]} 8. Bd3 {[%emt 0:00:06]} Nc6 {[%emt 0:00:05]} 9. Nb3 {[%emt 0:00:06]} Be7 {[%emt 0:00:05]} 10. Qf3 {[%emt 0:00:03]} h6 {[%emt 0:00:15]} 11. Bxf6 {[%emt 0:00:06]} Bxf6 {[%emt 0:00:01]} 12. O-O {[%emt 0:00:02]} O-O {[%emt 0:00:16]} 13. Kh1 {[%emt 0:00:01]} g6 {[%emt 0:00:09]} 14. Rae1 {[%emt 0:00:02]} Bg7 {[%emt 0:00:01]} 15. Qg3 {[%emt 0:00:05]} Qe7 {[%emt 0:00:11]} 16. e5 {[%emt 0:00:34]} dxe5 {[%emt 0:00:06]} 17. fxe5 {[%emt 0:00:01]} Qg5 {[%emt 0:00:07]} 18. Qh3 {[%emt 0:01:36]} Nxe5 {[%emt 0:00:09]} 19. Ne4 {[%emt 0:00:01]} Qe7 {[%emt 0:00:05]} 20. Be2 {[%emt 0:00:08]} Bd7 {[%emt 0:00:07]} 21. Nd4 {[%emt 0:00:02]} Nc6 {[%emt 0:00:13]} 22. Nxc6 {[%emt 0:00:05]} Bxc6 {[%emt 0:00:01]} 23. Bd3 {[%emt 0:00:00]} Rad8 {[%emt 0:00:13]} 24. Nd2 {[%emt 0:00:02]} Rd5 {[%emt 0:00:13]} 25. Qe3 {[%emt 0:00:09]} Rfd8 {[%emt 0:00:17]} 26. Nf3 {[%emt 0:00:01]} Qc5 {[%emt 0:00:13]} 27. Qe2 {[%emt 0:00:04]} Bxb2 {[%emt 0:00:20]} 28. Bxg6 {[%emt 0:00:02]} fxg6 {[%emt 0:00:32]} 29. c4 {[%emt 0:00:03]} R5d6 {[%emt 0:00:04]} 30. Qxb2 {[%emt 0:00:03]} Bxf3 {[%emt 0:00:03]} 31. Rxf3 {[%emt 0:00:02]} Rd1 {[%emt 0:00:02]} 32. Rff1 {[%emt 0:00:09]} Rxe1 {[%emt 0:00:02]} 33. Rxe1 {[%emt 0:00:01]} Qe3 {[%emt 0:00:01]} 34. Rg1 {[%emt 0:00:10]} Qe4 {[%emt 0:00:03]} 35. h3 {[%emt 0:00:04]} Rd3 {[%emt 0:00:02]} 36. Kh2 {[%emt 0:00:07]} Qf4+ {[%emt 0:00:01]} 37. Kh1 {[%emt 0:00:01]} Qe4 {[%emt 0:00:01]} 38. Kh2 {[%emt 0:00:01]} e5 {[%emt 0:00:01]} 39. Qf2 {[%emt 0:00:06]} Qf4+ {[%emt 0:00:01]} 40. Qxf4 {[%emt 0:00:01]} exf4 {[%emt 0:00:00]} 41. Rf1 {[%emt 0:00:02]} g5 {[%emt 0:00:01]} 42. h4 {[%emt 0:00:05]} Kg7 {[%emt 0:00:01]} 43. hxg5 {[%emt 0:00:01]} hxg5 {[%emt 0:00:01]} 44. Rb1 {[%emt 0:00:02]} Rd7 {[%emt 0:00:01]} 45. c5 {[%emt 0:00:02]} Kg6 {[%emt 0:00:03]} 46. Rb6+ {[%emt 0:00:02]} Kf5 {[%emt 0:00:01]} 47. c6 {[%emt 0:00:03]} bxc6 {[%emt 0:00:01]} 48. Rxc6 {[%emt 0:00:00]} Rd2 {[%emt 0:00:01]} 49. Rxa6 {[%emt 0:00:05]} f3 {[%emt 0:00:02]} 50. Kg3 {[%emt 0:00:01]} f2 {[%emt 0:00:01]} 51. Ra8 {[%emt 0:00:03]} f1=N+ {[%emt 0:00:03]} 0-1